[Event "AI Cup Div-2 2023"]
[Site "Online"]
[Date "2023.09.29"]
[Round "5.1"]
[White "Fedoseev, Vladimir"]
[Black "Artemiev, Vladislav"]
[Result "1/2-1/2"]
[ECO "D13"]
[WhiteElo "2683"]
[BlackElo "2697"]
[Annotator "TA"]
[PlyCount "125"]
[EventDate "2023.09.18"]
[EventType "k.o."]
[EventCountry "NET"]
[SourceTitle "playchess.com"]
[Source "ChessBase"]
[SourceQuality "1"]
[TimeControl "900+3"]

{[%evp 15,125,24,23,0,0,7,12,0,0,8,14,0,0,-14,-14,-12,-6,-23,10,0,0,0,0,0,0,0,61,39,57,68,72,0,41,42,42,14,14,14,28,32,58,10,27,0,0,0,184,202,155,95,145,112,150,108,187,167,298,277,527,525,1167,377,332,334,479,479,472,456,391,62,68,55,63,45,47,54,54,40,41,24,54,8,11,8,8,8,8,0,0,0,0,0,0,0,0,0,0,0,0,0,0,0,0,0,0,0,0,0,0,0,0,0]} 1. c4 {[%emt 0:00:15]} c6 {[%emt 0:00:18]} 2. d4 {[%emt 0:00:11]} d5 {[%emt 0:00:02]} 3. Nc3 {[%emt 0:00:04]} Nf6 {[%emt 0:00:01]} 4. cxd5 {[%emt 0:00:05]} cxd5 {[%emt 0:00:02]} 5. Bf4 {[%emt 0:00:02]} Nc6 {[%emt 0:00:03]} 6. e3 {[%emt 0:00:03]} a6 {[%emt 0:00:48]} 7. Be2 {[%emt 0:00:04]} Bf5 {[%emt 0:00:44]} 8. Nf3 {[%emt 0:00:44]} e6 {[%emt 0:00:19]} 9. O-O {[%emt 0:00:26] D13: Slav Defence: Exchange variation without ...Bf5.} Be7 {[%emt 0:00:14]} 10. Rc1 {[%emt 0:00:37]} O-O {[%emt 0:00:22]} 11. Nh4 {[%emt 0:01:10]} Be4 {[%emt 0:00:13]} 12. f3 {[%emt 0:00:45]} Bg6 {[%emt 0:01:01] [#]} 13. g4 $146 {[%emt 0:01:24]} ({Predecessor:} 13. Nxg6 hxg6 14. Bg3 Rc8 15. Na4 b5 16. Nc5 Qb6 17. a3 Na5 18. b4 Nc4 19. Rc3 a5 20. Bf2 Ra8 {½-½ Belunek,V (2252)-Sikora,J (2188) CZE-ch Ostrava 2014 (7)}) 13... Rc8 {[%emt 0:02:02]} 14. Na4 {[%emt 0:00:44]} Nd7 {[%emt 0:00:20]} 15. Nxg6 {[%emt 0:00:04]} hxg6 {[%emt 0:00:12]} 16. Nc3 {[%emt 0:00:56]} f5 {[%emt 0:01:10]} (16... g5 $5 17. Bg3 $8 Nb6 $11) 17. gxf5 {[%emt 0:00:54]} gxf5 {[%emt 0:00:01] ...Bg5 is the strong threat.} 18. Kh1 {[%emt 0:00:01]} Kh8 {[%emt 0:02:12]} 19. Rg1 {[%emt 0:00:17]} g5 {[%emt 0:00:05]} 20. Bg3 {[%emt 0:00:58]} Rf7 {[%emt 0:00:24]} (20... Bf6 $11) 21. e4 $1 $14 {[%emt 0:00:58]} Nf6 {[%emt 0:02:51][%cal Rd5e4]} 22. exf5 {[%emt 0:00:28]} exf5 {[%emt 0:00:01] [#]} 23. Be5 {[%emt 0:00:55]} (23. Bd3 $1 $16 {[%cal Rd3f5]}) 23... Bd6 {[%emt 0:01:58]} 24. f4 {[%emt 0:01:32]} gxf4 {[%emt 0:00:01]} 25. Bxf6+ {[%emt 0:00:05][%mdl 64] Remove Defender} (25. Nxd5 $2 Bxe5 26. Nxf6 Bxf6 $19) (25. Bd3 $5 {[%cal Rd1h5]} Bxe5 26. dxe5 Nxe5 27. Bxf5 $14) 25... Qxf6 {[%emt 0:00:39]} 26. Nxd5 {[%emt 0:00:01]} Qh4 {[%emt 0:00:06][%cal Of4f3]} 27. Bf3 {[%emt 0:00:02]} Rh7 {[%emt 0:00:07][%csl Gh7][%cal Rh4h2]} 28. Qd2 {[%emt 0:00:05]} (28. Rc2 $14 {is more appropriate.}) 28... Re8 {[%emt 0:00:04]} 29. Rg6 {[%emt 0:00:10]} Qh3 {[%emt 0:00:03]} 30. Qf2 {[%emt 0:00:12] Dancing on a razor blade.} (30. Nxf4 Qxf3+ 31. Kg1 Bxf4 32. Rf1 Be3+ 33. Rf2 Nxd4 34. Kf1 Qh3+ 35. Rfg2 Bxd2 36. R6g3 Re1+ 37. Kf2 Qh4 38. Rg1 Re2+ 39. Kf1 Qf4+) 30... Rh6 $2 {[%emt 0:00:04]} (30... Qg3 $1 $11 {and Black is okay.} 31. Rxg3 fxg3) 31. Rcg1 $18 {[%emt 0:00:36] And now Nf6 would win.} Ne7 {[%emt 0:00:01]} 32. Rxh6+ $40 {[%emt 0:00:35][%mdl 128] White is out for blood.} Qxh6 {[%emt 0:00:02]} 33. Re1 {[%emt 0:00:00] White is more active.} Kg7 {[%emt 0:00:07]} 34. Qg2+ {[%emt 0:00:15]} Kf8 {[%emt 0:00:03]} (34... Kh8 $16) 35. Qe2 {[%emt 0:00:02]} Qg6 {[%emt 0:00:02]} (35... Kg7 $142 36. Qc2 Qh3) 36. Bh5 {[%emt 0:00:05][%mdl 64] Skewer} f3 $2 {[%emt 0:00:04]} (36... Qh6 {is a better defense.} 37. Nc7 Bxc7) 37. Qxf3 {[%emt 0:00:08]} Qh6 {[%emt 0:00:02][%cal Oh6d2]} 38. Ne3 $2 {[%emt 0:00:06]} (38. Nxe7 Rxe7 39. Qxf5+ Kg8 40. Rg1+ Rg7 41. Bf7+ Kf8 42. Bd5+ Ke7 43. Rxg7+ {[%mdl 64] Deflection} (43. Bxb7 $2 Qxh2#) 43... Qxg7 44. Qe6+ {[%mdl 64] Deflection} (44. Bxb7 Qxd4 45. Qe4+ Qxe4+ 46. Bxe4 a5 $16) 44... Kf8 45. Qxd6+ Ke8 46. Qb8+ Ke7 47. Qc7+ Kf6 48. Qxg7+ Kxg7 49. Bxb7) 38... Rd8 {[%emt 0:00:04] Black is weak on the light squares} 39. Nxf5 {[%emt 0:00:21]} Nxf5 {[%emt 0:00:01]} (39... Qf6 {was called for.} 40. Bg4 Nxf5 41. Bxf5 (41. Qxf5 Qxf5 42. Bxf5 Bc7 $16) 41... Qh4 42. Bh3+ Kg7 43. Rg1+ Kh8) 40. Qxf5+ {[%emt 0:00:01]} Kg8 {[%emt 0:00:05]} 41. Rg1+ {[%emt 0:00:23]} Kh8 {[%emt 0:00:00] [#]} 42. Qg6 {[%emt 0:00:01] Repels Rg8} ({Weaker is} 42. Qf7 Rf8 43. Qg6 (43. Qxb7 Bxh2 44. Rg6 Rf1+ 45. Kg2 Rg1+ 46. Kxh2 Rxg6 $11) 43... Qxg6 44. Rxg6 Bb8 $16) (42. Rg6 $1 $18 {[%cal Rg6h6]} Qf4 43. Qh3) 42... Qxg6 $14 {[%emt 0:00:05]} 43. Rxg6 {[%emt 0:00:00][%mdl 4096] Endgame KRB-KRB} Bf4 {[%emt 0:00:01]} 44. Rb6 {[%emt 0:00:13]} Rxd4 {[%emt 0:00:01]} 45. Rxb7 {[%emt 0:00:01]} Rd2 {[%emt 0:00:01]} 46. h4 {[%emt 0:00:07]} Be5 {[%emt 0:00:02]} 47. Bg6 {[%emt 0:00:05]} Rxb2 {[%emt 0:00:03]} 48. Rh7+ {[%emt 0:00:02]} (48. Rxb2 {simplifies} Bxb2 49. Kg2 Kg7 50. Bd3) 48... Kg8 {[%emt 0:00:01] The position is equal.} 49. h5 {[%emt 0:00:03]} Bg7 {[%emt 0:00:06]} 50. h6 {[%emt 0:00:03]} Bxh6 {[%emt 0:00:02][%mdl 64] Deflection} 51. Rxh6 $11 {[%emt 0:00:03] Rh2 would be deadly. KRB-KR} Kg7 $1 {[%emt 0:00:01]} 52. Rh2 {[%emt 0:00:07]} Rxh2+ {[%emt 0:00:01]} 53. Kxh2 {[%emt 0:00:00] White wants to mate with Bd3.} Kxg6 {[%emt 0:00:01] KP-KP} 54. Kg3 {[%emt 0:00:01]} Kf5 {[%emt 0:00:00]} 55. Kf3 {[%emt 0:00:00]} Ke5 {[%emt 0:00:00]} 56. Ke3 {[%emt 0:00:00]} Kd5 {[%emt 0:00:01]} 57. Kd3 {[%emt 0:00:00]} Kc5 {[%emt 0:00:00]} 58. Kc3 {[%emt 0:00:00]} a5 {[%emt 0:00:01]} 59. a4 {[%emt 0:00:02]} Kd5 {[%emt 0:00:01]} 60. Kd3 {[%emt 0:00:00]} Kc5 {[%emt 0:00:00]} 61. Kc3 {[%emt 0:00:01]} Kd5 {[%emt 0:00:00]} 62. Kd3 {[%emt 0:00:00]} Kc5 {[%emt 0:00:00]} 63. Kc3 {[%emt 0:00:00] White really could win this. An interesting game.   Weighted Error Value: White=0.32/Black=0.27 (precise)} 1/2-1/2

[Event "AI Cup Div-2 2023"]
[Site "Online"]
[Date "2023.09.29"]
[Round "5.2"]
[White "Artemiev, Vladislav"]
[Black "Fedoseev, Vladimir"]
[Result "0-1"]
[ECO "B22"]
[WhiteElo "2697"]
[BlackElo "2683"]
[Annotator "ChessBase"]
[PlyCount "228"]
[EventDate "2023.09.18"]
[EventType "k.o."]
[EventCountry "NET"]
[SourceTitle "playchess.com"]
[Source "ChessBase"]
[SourceQuality "1"]
[TimeControl "900+3"]

1. e4 {[%emt 0:00:06]} c5 {[%emt 0:00:15]} 2. Nf3 {[%emt 0:00:03]} e6 {[%emt 0:00:01]} 3. c3 {[%emt 0:01:37]} d5 {[%emt 0:00:27]} 4. exd5 {[%emt 0:00:08]} Qxd5 {[%emt 0:00:03]} 5. d4 {[%emt 0:00:18]} Nf6 {[%emt 0:00:03]} 6. Be2 {[%emt 0:00:33]} Be7 {[%emt 0:00:26]} 7. O-O {[%emt 0:00:09]} O-O {[%emt 0:00:02]} 8. Be3 {[%emt 0:01:08]} cxd4 {[%emt 0:00:09]} 9. Nxd4 {[%emt 0:00:01]} Qd8 {[%emt 0:00:17]} 10. c4 {[%emt 0:00:39]} e5 {[%emt 0:00:29]} 11. Nb5 {[%emt 0:00:16]} Nc6 {[%emt 0:00:03]} 12. N1c3 {[%emt 0:01:44]} Be6 {[%emt 0:00:03]} 13. Qxd8 {[%emt 0:00:46]} Raxd8 {[%emt 0:00:27]} 14. Rad1 {[%emt 0:00:05]} Bb4 {[%emt 0:01:56]} 15. a3 {[%emt 0:00:33]} Bxc3 {[%emt 0:00:30]} 16. Nxc3 {[%emt 0:00:03]} Na5 {[%emt 0:01:50]} 17. Bxa7 {[%emt 0:03:12]} Nxc4 {[%emt 0:00:12]} 18. Bxc4 {[%emt 0:00:16]} Bxc4 {[%emt 0:00:04]} 19. Bb6 {[%emt 0:00:01]} Rd7 {[%emt 0:00:26]} 20. Rfe1 {[%emt 0:00:04]} Bb3 {[%emt 0:00:04]} 21. Rc1 {[%emt 0:00:26]} Re8 {[%emt 0:00:23]} 22. f3 {[%emt 0:01:19]} h5 {[%emt 0:00:23]} 23. Bf2 {[%emt 0:00:38]} Rd2 {[%emt 0:00:37]} 24. Re2 {[%emt 0:01:20]} Red8 {[%emt 0:00:22]} 25. Rxe5 {[%emt 0:00:17]} Rxb2 {[%emt 0:00:05]} 26. Re2 {[%emt 0:00:01]} Rxe2 {[%emt 0:00:30]} 27. Nxe2 {[%emt 0:00:01]} Nd5 {[%emt 0:00:42]} 28. Nd4 {[%emt 0:00:10]} Nf4 {[%emt 0:00:45]} 29. Re1 {[%emt 0:00:20]} Bc4 {[%emt 0:00:12]} 30. Be3 {[%emt 0:00:08]} Nd3 {[%emt 0:00:26]} 31. Rb1 {[%emt 0:00:02]} Re8 {[%emt 0:00:01]} 32. Bf2 {[%emt 0:00:01]} Ba6 {[%emt 0:00:17]} 33. h4 {[%emt 0:00:02]} g6 {[%emt 0:00:07]} 34. Bg3 {[%emt 0:00:05]} Rc8 {[%emt 0:00:06]} 35. Ne2 {[%emt 0:00:08]} Rc2 {[%emt 0:00:11]} 36. Nf4 {[%emt 0:00:02]} Rc3 {[%emt 0:00:31]} 37. Nxd3 {[%emt 0:00:06]} Rxd3 {[%emt 0:00:01]} 38. a4 {[%emt 0:00:03]} Kf8 {[%emt 0:00:11]} 39. Rc1 {[%emt 0:00:03]} Ke7 {[%emt 0:00:02]} 40. Bf2 {[%emt 0:00:02]} Kd7 {[%emt 0:00:04]} 41. Re1 {[%emt 0:00:03]} Bc4 {[%emt 0:00:05]} 42. Kh2 {[%emt 0:00:03]} Ra3 {[%emt 0:00:05]} 43. Rb1 {[%emt 0:00:01]} Bd5 {[%emt 0:00:07]} 44. Rd1 {[%emt 0:00:07]} Ke6 {[%emt 0:00:03]} 45. Re1+ {[%emt 0:00:02]} Kd6 {[%emt 0:00:17]} 46. Bg3+ {[%emt 0:00:01]} Kc5 {[%emt 0:00:49]} 47. Rc1+ {[%emt 0:00:00]} Kd4 {[%emt 0:00:01]} 48. Rd1+ {[%emt 0:00:07]} Kc4 {[%emt 0:00:04]} 49. Bf2 {[%emt 0:00:02]} Bc6 {[%emt 0:00:14]} 50. Rd4+ {[%emt 0:00:01]} Kc3 {[%emt 0:00:01]} 51. Rd6 {[%emt 0:00:08]} Rxa4 {[%emt 0:00:06]} 52. Rf6 {[%emt 0:00:01]} Bd5 {[%emt 0:00:04]} 53. Rd6 {[%emt 0:00:01]} Kc4 {[%emt 0:00:04]} 54. Rb6 {[%emt 0:00:05]} Rb4 {[%emt 0:00:10]} 55. Kg3 {[%emt 0:00:04]} Ra4 {[%emt 0:00:18]} 56. Kf4 {[%emt 0:00:03]} Kd3+ {[%emt 0:00:14]} 57. Kg3 {[%emt 0:00:01]} Bc6 {[%emt 0:00:07]} 58. Rb3+ {[%emt 0:00:01]} Kc4 {[%emt 0:00:04]} 59. Rb6 {[%emt 0:00:01]} Ra2 {[%emt 0:00:13]} 60. Be3 {[%emt 0:00:04]} Re2 {[%emt 0:00:01]} 61. Bg1 {[%emt 0:00:08]} f6 {[%emt 0:00:16]} 62. Bf2 {[%emt 0:00:03]} g5 {[%emt 0:00:06]} 63. hxg5 {[%emt 0:00:03]} fxg5 {[%emt 0:00:04]} 64. Bg1 {[%emt 0:00:02]} h4+ {[%emt 0:00:06]} 65. Kh3 {[%emt 0:00:01]} Re1 {[%emt 0:00:22]} 66. Kh2 {[%emt 0:00:06]} Kc3 {[%emt 0:00:20]} 67. Bc5 {[%emt 0:00:02]} Re2 {[%emt 0:00:03]} 68. Kh3 {[%emt 0:00:06]} Bd7+ {[%emt 0:00:02]} 69. Kh2 {[%emt 0:00:01]} h3 {[%emt 0:00:03]} 70. Rxb7 {[%emt 0:00:02]} Rxg2+ {[%emt 0:00:01]} 71. Kh1 {[%emt 0:00:01]} Bc6 {[%emt 0:00:00]} 72. Rh7 {[%emt 0:00:06]} g4 {[%emt 0:00:02]} 73. fxg4 {[%emt 0:00:00]} Rc2+ {[%emt 0:00:16]} 74. Kg1 {[%emt 0:00:02]} Rg2+ {[%emt 0:00:01]} 75. Kh1 {[%emt 0:00:08]} Kc4 {[%emt 0:00:01]} 76. Rxh3 {[%emt 0:00:03]} Rxg4+ {[%emt 0:00:07]} 77. Kh2 {[%emt 0:00:01]} Rg2+ {[%emt 0:00:01]} 78. Kh1 {[%emt 0:00:01]} Rc2+ {[%emt 0:00:04]} 79. Kg1 {[%emt 0:00:01]} Kxc5 {[%emt 0:00:01]} 80. Rh2 {[%emt 0:00:00]} Rc3 {[%emt 0:00:06]} 81. Kf2 {[%emt 0:00:03]} Kd4 {[%emt 0:00:03]} 82. Rh4+ {[%emt 0:00:03]} Be4 {[%emt 0:00:02]} 83. Rf4 {[%emt 0:00:07]} Rc2+ {[%emt 0:00:04]} 84. Kg3 {[%emt 0:00:01]} Rg2+ {[%emt 0:00:01]} 85. Kh4 {[%emt 0:00:02]} Rg8 {[%emt 0:00:09]} 86. Rg4 {[%emt 0:00:00]} Rh8+ {[%emt 0:00:01]} 87. Kg5 {[%emt 0:00:01]} Ke5 {[%emt 0:00:01]} 88. Rg3 {[%emt 0:00:01]} Rf8 {[%emt 0:00:04]} 89. Rg4 {[%emt 0:00:06]} Bf3 {[%emt 0:00:03]} 90. Rg3 {[%emt 0:00:05]} Rg8+ {[%emt 0:00:04]} 91. Kh4 {[%emt 0:00:00]} Rh8+ {[%emt 0:00:01]} 92. Kg5 {[%emt 0:00:01]} Rf8 {[%emt 0:00:08]} 93. Kh4 {[%emt 0:00:05]} Ke4 {[%emt 0:00:04]} 94. Kg5 {[%emt 0:00:02]} Rg8+ {[%emt 0:00:01]} 95. Kh4 {[%emt 0:00:01]} Rh8+ {[%emt 0:00:00]} 96. Kg5 {[%emt 0:00:00]} Rf8 {[%emt 0:00:03]} 97. Kh4 {[%emt 0:00:04]} Rf5 {[%emt 0:00:02]} 98. Rg5 {[%emt 0:00:03]} Rf6 {[%emt 0:00:01]} 99. Rg3 {[%emt 0:00:07]} Rf7 {[%emt 0:00:01]} 100. Rg5 {[%emt 0:00:03]} Ke3 {[%emt 0:00:01]} 101. Kg3 {[%emt 0:00:02]} Be4 {[%emt 0:00:02]} 102. Rg4 {[%emt 0:00:04]} Rf1 {[%emt 0:00:02]} 103. Rg5 {[%emt 0:00:01]} Rh1 {[%emt 0:00:02]} 104. Rg4 {[%emt 0:00:02]} Bf5 {[%emt 0:00:01]} 105. Rg5 {[%emt 0:00:00]} Ke4 {[%emt 0:00:01]} 106. Kg2 {[%emt 0:00:04]} Ra1 {[%emt 0:00:05]} 107. Kg3 {[%emt 0:00:01]} Ra3+ {[%emt 0:00:02]} 108. Kh2 {[%emt 0:00:04]} Kf4 {[%emt 0:00:02]} 109. Rg2 {[%emt 0:00:16]} Rh3+ {[%emt 0:00:03]} 110. Kg1 {[%emt 0:00:01]} Be4 {[%emt 0:00:00]} 111. Rh2 {[%emt 0:00:03]} Ra3 {[%emt 0:00:05]} 112. Rh4+ {[%emt 0:00:04]} Kg3 {[%emt 0:00:04]} 113. Rxe4 {[%emt 0:00:07]} Ra1+ {[%emt 0:00:01]} 114. Re1 {[%emt 0:00:01]} Rxe1# {[%emt 0:00:01]} 0-1

[Event "AI Cup Div-2 2023"]
[Site "Online"]
[Date "2023.09.29"]
[Round "5.3"]
[White "Fedoseev, Vladimir"]
[Black "Artemiev, Vladislav"]
[Result "1/2-1/2"]
[ECO "D02"]
[WhiteElo "2683"]
[BlackElo "2697"]
[Annotator "ChessBase"]
[PlyCount "119"]
[EventDate "2023.09.18"]
[EventType "k.o."]
[EventCountry "NET"]
[SourceTitle "playchess.com"]
[Source "ChessBase"]
[SourceQuality "1"]
[TimeControl "900+3"]

1. d4 {[%emt 0:00:13]} e6 {[%emt 0:01:27]} 2. Nf3 {[%emt 0:00:17]} c5 {[%emt 0:00:04]} 3. g3 {[%emt 0:00:38]} cxd4 {[%emt 0:01:41]} 4. Nxd4 {[%emt 0:00:03]} d5 {[%emt 0:00:32]} 5. Bg2 {[%emt 0:00:05]} Nf6 {[%emt 0:00:01]} 6. O-O {[%emt 0:00:04]} e5 {[%emt 0:00:03]} 7. Nb3 {[%emt 0:00:47]} Be6 {[%emt 0:00:02]} 8. c4 {[%emt 0:00:43]} Nc6 {[%emt 0:00:05]} 9. cxd5 {[%emt 0:00:03]} Nxd5 {[%emt 0:00:01]} 10. Bd2 {[%emt 0:01:04]} Be7 {[%emt 0:05:28]} 11. Nc3 {[%emt 0:00:09]} Nxc3 {[%emt 0:00:56]} 12. Bxc3 {[%emt 0:00:03]} f6 {[%emt 0:00:01]} 13. Qxd8+ {[%emt 0:01:25]} Rxd8 {[%emt 0:00:02]} 14. Rfc1 {[%emt 0:00:26]} Bd5 {[%emt 0:01:01]} 15. Na5 {[%emt 0:00:14]} Bxg2 {[%emt 0:00:40]} 16. Kxg2 {[%emt 0:00:03]} Nxa5 {[%emt 0:00:01]} 17. Bxa5 {[%emt 0:00:01]} b6 {[%emt 0:00:01]} 18. Bc3 {[%emt 0:00:01]} Kf7 {[%emt 0:00:07]} 19. f4 {[%emt 0:00:36]} e4 {[%emt 0:00:18]} 20. a4 {[%emt 0:00:56]} Rd7 {[%emt 0:01:47]} 21. a5 {[%emt 0:00:12]} Rc8 {[%emt 0:00:24]} 22. axb6 {[%emt 0:00:04]} axb6 {[%emt 0:00:00]} 23. Rd1 {[%emt 0:01:16]} Rxd1 {[%emt 0:00:14]} 24. Rxd1 {[%emt 0:00:03]} Ke6 {[%emt 0:00:06]} 25. Ra1 {[%emt 0:01:11]} b5 {[%emt 0:00:45]} 26. Ra7 {[%emt 0:00:28]} Rc4 {[%emt 0:00:16]} 27. f5+ {[%emt 0:01:02]} Kf7 {[%emt 0:00:00]} 28. Ba5 {[%emt 0:00:14]} Ke8 {[%emt 0:00:06]} 29. Ra8+ {[%emt 0:00:05]} Kf7 {[%emt 0:00:05]} 30. Ra7 {[%emt 0:00:08]} Ra4 {[%emt 0:00:03]} 31. b4 {[%emt 0:00:08]} Ke8 {[%emt 0:00:05]} 32. Rb7 {[%emt 0:00:21]} Bxb4 {[%emt 0:00:10]} 33. Bxb4 {[%emt 0:00:04]} Rxb4 {[%emt 0:00:02]} 34. Rxg7 {[%emt 0:00:00]} h5 {[%emt 0:00:04]} 35. Kf2 {[%emt 0:00:09]} Rc4 {[%emt 0:00:05]} 36. Rb7 {[%emt 0:00:09]} Rc5 {[%emt 0:00:02]} 37. Ke3 {[%emt 0:00:04]} Rxf5 {[%emt 0:00:00]} 38. Kxe4 {[%emt 0:00:02]} Re5+ {[%emt 0:00:04]} 39. Kf3 {[%emt 0:00:01]} Kd8 {[%emt 0:00:04]} 40. e4 {[%emt 0:00:07]} Ke8 {[%emt 0:00:05]} 41. Kf4 {[%emt 0:00:03]} Kf8 {[%emt 0:00:01]} 42. Rc7 {[%emt 0:00:16]} Ke8 {[%emt 0:00:04]} 43. h4 {[%emt 0:00:11]} Kf8 {[%emt 0:00:03]} 44. Ke3 {[%emt 0:00:06]} f5 {[%emt 0:00:03]} 45. Kf4 {[%emt 0:00:04]} Rxe4+ {[%emt 0:00:05]} 46. Kxf5 {[%emt 0:00:01]} Rg4 {[%emt 0:00:00]} 47. Kf6 {[%emt 0:00:05]} Kg8 {[%emt 0:00:05]} 48. Rc5 {[%emt 0:00:07]} Rxg3 {[%emt 0:00:02]} 49. Rxb5 {[%emt 0:00:01]} Rf3+ {[%emt 0:00:02]} 50. Kg6 {[%emt 0:00:02]} Rf8 {[%emt 0:00:01]} 51. Rxh5 {[%emt 0:00:05]} Rd8 {[%emt 0:00:01]} 52. Rf5 {[%emt 0:00:03]} Rd6+ {[%emt 0:00:01]} 53. Rf6 {[%emt 0:00:01]} Rxf6+ {[%emt 0:00:00]} 54. Kxf6 {[%emt 0:00:00]} Kh7 {[%emt 0:00:01]} 55. Kg5 {[%emt 0:00:00]} Kh8 {[%emt 0:00:01]} 56. h5 {[%emt 0:00:00]} Kg8 {[%emt 0:00:00]} 57. h6 {[%emt 0:00:00]} Kh8 {[%emt 0:00:01]} 58. Kh5 {[%emt 0:00:00]} Kg8 {[%emt 0:00:00]} 59. Kg6 {[%emt 0:00:00]} Kh8 {[%emt 0:00:01]} 60. h7 {[%emt 0:00:01]} 1/2-1/2

[Event "AI Cup Div-2 2023"]
[Site "Online"]
[Date "2023.09.29"]
[Round "5.4"]
[White "Artemiev, Vladislav"]
[Black "Fedoseev, Vladimir"]
[Result "1/2-1/2"]
[ECO "C24"]
[WhiteElo "2697"]
[BlackElo "2683"]
[Annotator "ChessBase"]
[PlyCount "106"]
[EventDate "2023.09.18"]
[EventType "k.o."]
[EventCountry "NET"]
[SourceTitle "playchess.com"]
[Source "ChessBase"]
[SourceQuality "1"]
[TimeControl "900+3"]

1. e4 {[%emt 0:00:23]} e5 {[%emt 0:00:11]} 2. Bc4 {[%emt 0:00:07]} Nf6 {[%emt 0:00:07]} 3. d3 {[%emt 0:00:03]} c6 {[%emt 0:00:13]} 4. Nf3 {[%emt 0:00:04]} d5 {[%emt 0:00:04]} 5. Bb3 {[%emt 0:00:01]} Bd6 {[%emt 0:00:06]} 6. Nc3 {[%emt 0:01:35]} dxe4 {[%emt 0:00:53]} 7. Ng5 {[%emt 0:00:11]} O-O {[%emt 0:00:09]} 8. Ncxe4 {[%emt 0:00:08]} Nxe4 {[%emt 0:00:16]} 9. Nxe4 {[%emt 0:00:07]} Bf5 {[%emt 0:01:20]} 10. Ng3 {[%emt 0:02:14]} Bg6 {[%emt 0:01:11]} 11. h4 {[%emt 0:00:05]} h6 {[%emt 0:00:04]} 12. Qg4 {[%emt 0:01:14]} Kh8 {[%emt 0:00:06]} 13. h5 {[%emt 0:00:02]} Bh7 {[%emt 0:00:07]} 14. Nf5 {[%emt 0:00:04]} Qf6 {[%emt 0:00:20]} 15. Nxd6 {[%emt 0:00:36]} Qxd6 {[%emt 0:00:04]} 16. Bd2 {[%emt 0:00:17]} Nd7 {[%emt 0:00:07]} 17. Bc3 {[%emt 0:02:03]} a5 {[%emt 0:00:18]} 18. a3 {[%emt 0:00:21]} Nc5 {[%emt 0:00:45]} 19. Ba2 {[%emt 0:00:02]} f6 {[%emt 0:00:11]} 20. O-O {[%emt 0:00:48]} Rfe8 {[%emt 0:00:31]} 21. Rae1 {[%emt 0:01:33]} b5 {[%emt 0:00:54]} 22. Bf7 {[%emt 0:02:21]} Re7 {[%emt 0:00:19]} 23. Bg6 {[%emt 0:00:01]} Ne6 {[%emt 0:02:53]} 24. Bd2 {[%emt 0:01:23]} Qd7 {[%emt 0:01:25]} 25. f4 {[%emt 0:00:16]} exf4 {[%emt 0:00:22]} 26. Bxf4 {[%emt 0:00:03]} Bxg6 {[%emt 0:00:47]} 27. hxg6 {[%emt 0:00:00]} Rae8 {[%emt 0:00:05]} 28. Re4 {[%emt 0:00:10]} Nf8 {[%emt 0:00:35]} 29. Qxd7 {[%emt 0:00:03]} Nxd7 {[%emt 0:00:01]} 30. Rxe7 {[%emt 0:00:12]} Rxe7 {[%emt 0:00:00]} 31. Rf2 {[%emt 0:00:05]} Nf8 {[%emt 0:00:14]} 32. Bd2 {[%emt 0:00:01]} Ra7 {[%emt 0:00:11]} 33. Re2 {[%emt 0:00:04]} Nxg6 {[%emt 0:00:01]} 34. Re6 {[%emt 0:00:01]} Ne5 {[%emt 0:00:28]} 35. Bc3 {[%emt 0:00:04]} Ng4 {[%emt 0:00:32]} 36. Rxc6 {[%emt 0:00:01]} b4 {[%emt 0:00:00]} 37. Bd4 {[%emt 0:00:01]} Rd7 {[%emt 0:00:03]} 38. Rc4 {[%emt 0:00:08]} bxa3 {[%emt 0:00:07]} 39. bxa3 {[%emt 0:00:00]} h5 {[%emt 0:00:07]} 40. g3 {[%emt 0:00:05]} Kg8 {[%emt 0:00:03]} 41. Kg2 {[%emt 0:00:02]} Kf7 {[%emt 0:00:02]} 42. Kf3 {[%emt 0:00:01]} g5 {[%emt 0:00:24]} 43. Bc3 {[%emt 0:00:03]} Re7 {[%emt 0:00:07]} 44. Bxa5 {[%emt 0:00:07]} Re3+ {[%emt 0:00:06]} 45. Kg2 {[%emt 0:00:01]} Re2+ {[%emt 0:00:01]} 46. Kf1 {[%emt 0:00:06]} Re5 {[%emt 0:00:08]} 47. Bd2 {[%emt 0:00:02]} Rf5+ {[%emt 0:00:03]} 48. Ke1 {[%emt 0:00:03]} Rf3 {[%emt 0:00:02]} 49. a4 {[%emt 0:00:02]} Rxg3 {[%emt 0:00:01]} 50. Kf1 {[%emt 0:00:03]} h4 {[%emt 0:00:05]} 51. Be1 {[%emt 0:00:04]} Ne3+ {[%emt 0:00:04]} 52. Ke2 {[%emt 0:00:01]} Nxc4 {[%emt 0:00:11]} 53. Bxg3 {[%emt 0:00:01]} Nb2 {[%emt 0:00:02]} 1/2-1/2

[Event "AI Cup Div-2 2023"]
[Site "Online"]
[Date "2023.09.26"]
[Round "51.1"]
[White "Niemann, Hans Moke"]
[Black "Safarli, Eltaj"]
[Result "1-0"]
[ECO "B40"]
[WhiteElo "2667"]
[BlackElo "2612"]
[Annotator "ChessBase"]
[PlyCount "80"]
[EventDate "2023.09.18"]
[EventType "k.o."]
[EventCountry "NET"]
[SourceTitle "playchess.com"]
[Source "ChessBase"]
[SourceQuality "1"]
[TimeControl "900+3"]

1. e4 {[%emt 0:00:10]} c5 {[%emt 0:00:13]} 2. Nf3 {[%emt 0:00:02]} e6 {[%emt 0:00:03]} 3. b3 {[%emt 0:00:08]} a6 {[%emt 0:00:07]} 4. Bb2 {[%emt 0:00:02]} Nc6 {[%emt 0:00:01]} 5. g3 {[%emt 0:00:09]} Qc7 {[%emt 0:00:21]} 6. Bg2 {[%emt 0:00:06]} Nf6 {[%emt 0:00:01]} 7. Qe2 {[%emt 0:01:21]} d6 {[%emt 0:00:14]} 8. O-O {[%emt 0:00:10]} e5 {[%emt 0:00:31]} 9. h3 {[%emt 0:00:30]} Be7 {[%emt 0:00:10]} 10. c3 {[%emt 0:00:02]} Bd7 {[%emt 0:01:25]} 11. Rd1 {[%emt 0:01:15]} Qc8 {[%emt 0:01:50]} 12. Kh2 {[%emt 0:00:04]} h5 {[%emt 0:00:01]} 13. d4 {[%emt 0:00:31]} h4 {[%emt 0:04:51]} 14. g4 {[%emt 0:00:35]} Bd8 {[%emt 0:04:12]} 15. dxc5 {[%emt 0:00:08]} dxc5 {[%emt 0:00:04]} 16. Nbd2 {[%emt 0:00:25]} b5 {[%emt 0:00:20]} 17. a4 {[%emt 0:00:19]} Ne7 {[%emt 0:00:16]} 18. Nxe5 {[%emt 0:00:15]} Bc7 {[%emt 0:00:05]} 19. f4 {[%emt 0:00:01]} Bxe5 {[%emt 0:00:18]} 20. fxe5 {[%emt 0:00:02]} Qc7 {[%emt 0:00:02]} 21. Nf3 {[%emt 0:00:04]} Ng6 {[%emt 0:00:13]} 22. c4 {[%emt 0:00:01]} Bxg4 {[%emt 0:00:24]} 23. hxg4 {[%emt 0:00:15]} h3 {[%emt 0:00:02]} 24. Bh1 {[%emt 0:00:10]} Nxg4+ {[%emt 0:00:02]} 25. Kg1 {[%emt 0:00:02]} h2+ {[%emt 0:00:26]} 26. Kf1 {[%emt 0:00:03]} O-O {[%emt 0:00:04]} 27. Nxh2 {[%emt 0:00:15]} N4xe5 {[%emt 0:00:02]} 28. cxb5 {[%emt 0:00:17]} f5 {[%emt 0:00:02]} 29. Kg1 {[%emt 0:00:30]} Nf4 {[%emt 0:00:01]} 30. Qe3 {[%emt 0:00:05]} Ng4 {[%emt 0:00:01]} 31. Nxg4 {[%emt 0:00:03]} fxg4 {[%emt 0:00:00]} 32. e5 {[%emt 0:01:35]} Nh3+ {[%emt 0:00:02]} 33. Kh2 {[%emt 0:00:04]} Rf2+ {[%emt 0:00:02]} 34. Kg3 {[%emt 0:00:07]} Raf8 {[%emt 0:00:02]} 35. Bd5+ {[%emt 0:00:04]} Kh8 {[%emt 0:00:03]} 36. Rd2 {[%emt 0:00:08]} R2f3+ {[%emt 0:00:16]} 37. Bxf3 {[%emt 0:00:02]} Rxf3+ {[%emt 0:00:00]} 38. Qxf3 {[%emt 0:00:00]} gxf3 {[%emt 0:00:01]} 39. Rh1 {[%emt 0:00:01]} Kg8 {[%emt 0:00:03]} 40. Rxh3 {[%emt 0:00:02]} Qf7 {[%emt 0:00:01]} 1-0